Cogmind - Beta 10 @@@ ROGUE MODE // 2020.09.20 @ 23:55:20 // Winter2019/RPGLIKE Player: Hermelin Result: Destroyed by as-03983 with Assembled Maul Performance ------------- Evolutions (0) 0 Regions Visited (0) 0 Robots Destroyed (4) 20 Value Destroyed (14) 14 Prototype IDs (0) 0 Alien Tech Used (0) 0 Bonus (0) 0 TOTAL SCORE: 34 Bonus ------- None Cogmind --------- Core Integrity 0/600 Matter 332/350 Energy 250/250 System Corruption 0% Temperature Cool (0) Movement Treading (160) Location -11/Scrapyard Parts ------- > --- POWER (1) -------- Ion Engine > --- PROPULSION (2) --- Light Treads Light Treads > --- UTILITY (2) ------ Small Matter Pod Improved Terrain Scanner > --- WEAPON (2) ------- Light Assault Rifle Light Assault Rifle > --- INVENTORY (2) ---- Wheel Mining Laser Peak State ------------ > --- POWER ------------ Ion Engine > --- PROPULSION ------- Light Treads Light Treads > --- UTILITY ---------- Small Matter Pod Improved Terrain Scanner > --- WEAPON ----------- Light Assault Rifle Light Assault Rifle > --- INVENTORY -------- Wheel Light Assault Rifle [Rating: 8] Favorites ----------- Power Ion Engine Engine Ion Engine Propulsion Light Treads Treads Light Treads Utility Improved Terrain Scanner Device Improved Terrain Scanner Storage Small Matter Pod Weapon Light Assault Rifle Ballistic Gun Light Assault Rifle Special Weapon Mining Laser Build | -11 ------- Run | Scr Slots Evolved 3 | 3 Power . | . Propulsion 1 | 1 Utility 1 | 1 Weapon 1 | 1 Parts Attached 9 | 9 Power 1 | 1 Engine 1 | 1 Core . | . Reactor . | . Propulsion 2 | 2 Treads 2 | 2 Leg . | . Wheel . | . Hover . | . Flight . | . Utility 2 | 2 Device 1 | 1 Storage 1 | 1 Processor . | . Hackware . | . Protection . | . Artifact . | . Weapon 4 | 4 Energy Gun . | . Energy Cannon . | . Ballistic Gun 3 | 3 Ballistic Cannon . | . Launcher . | . Special Weapon 1 | 1 Impact Weapon . | . Slashing Weapon . | . Piercing Weapon . | . Special Melee Weapon . | . Unidentified Prototypes . | . Parts Lost . | . Power . | . Propulsion . | . Utility . | . Weapon . | . Highest Loss Streak . | . Average Slot Usage (%) . | . Naked Turns . | . Heaviest Build 9 | 9 Greatest Support 45 | 45 Greatest Overweight (x) . | . Average Overweight (x) . | . Largest Inventory Capacity 2 | 2 Average Capacity 1 | 1 Most Carried 2 | 2 Average Carried 1 | 1 Final Capacity 2 | 2 Final Carried 2 | 2 Class Distribution -------------------- None Dominant Class ---------------- None Resources | -11 ----------- Run | Scr Matter Collected 302 | 302 Remotely . | . Salvage Created 109 | 109 Parts 7 | 7 Haulers Intercepted . | . Recyclers Shooed . | . Parts Field Recycled . | . Retrieved Matter . | . Parts Self-Destructed . | . Prevented . | . Kills | -11 ------- Run | Scr Combat Hostiles Destroyed 1 | 1 Guns 1 | 1 Classes Destroyed 4 | 4 Worker 1 | 1 Tunneler 1 | 1 Recycler 1 | 1 Assembled 1 | 1 Best Kill Streak 1 | 1 Combat Bots Only 1 | 1 Max Kills in Single Turn 1 | 1 Gunslinging . | . Exploded . | . Melee . | . Uniques/NPCs Destroyed . | . Combat | -11 -------- Run | Scr Damage Taken 718 | 718 Core 615 | 615 Absorbed by Shields . | . Redirected to Core 363 | 363 Core Remaining (%) . | . Volleys Fired 16 | 16 Largest 2 | 2 Hottest 100 | 100 Shots Fired 28 | 28 Gun 24 | 24 Cannon . | . Launcher . | . Special 4 | 4 Kinetic 24 | 24 Thermal 4 | 4 Explosive . | . Electromagnetic . | . Robot Hit Streak 7 | 7 Robot Miss Streak 3 | 3 Penetration Max . | . Secondary Targets 1 | 1 Max Gunslinging Chain 1 | 1 Shots Hit Robots 15 | 15 Core Hits 8 | 8 Critical Hits . | . Critical Kills . | . Critical Parts Destroyed . | . Melee Attacks . | . Impact . | . Slashing . | . Piercing . | . Sneak Attacks . | . Combat Hostiles . | . Follow-up Attacks . | . Damage Inflicted 124 | 124 Guns 124 | 124 Cannons . | . Explosions . | . Melee . | . Ramming . | . Kinetic 124 | 124 Thermal . | . Explosive . | . Electromagnetic . | . Impact . | . Slashing . | . Piercing . | . Highest Corruption . | . Average Corruption . | . Corruption Purged . | . Overload Shots . | . Overflow Damage . | . Projectiles . | . Explosions . | . Melee . | . Knockbacks . | . Impact . | . Kinetic . | . Secondary . | . Self-Inflicted Damage . | . Shots . | . Rammed . | . Targets Rammed . | . Kicked . | . Crushed . | . Highest Temperature . | . Average Temperature . | . Received Heat Transfer . | . Siege Activations . | . Robots Corrupted . | . Combat Hostiles . | . Parts Fried . | . Impact Corruptions . | . Robots Melted . | . Combat Hostiles . | . Parts Melted . | . Heat Transferred . | . Parts Sabotaged . | . Parts Stolen . | . Parts Stripped . | . Power Chain Reactions . | . Missiles Intercepted . | . Alert | -11 ------- Run | Scr Peak Influence 15 | 15 Initial . | . Average . | . Maximum Alert Level . | . Low Security (%) 100 | 100 Level 1 . | . Level 2 . | . Level 3 . | . Level 4 . | . Level 5 . | . High Security . | . Max Security . | . Squads Dispatched . | . Investigation . | . Extermination . | . Reinforcement . | . Assault . | . Garrison . | . Intercept . | . Construction Impeded . | . Haulers Reinforced . | . Stealth | -11 --------- Run | Scr Distress Signals . | . Communications Jammed . | . Distress Signals . | . Times Spotted 20 | 20 Peak Tracking Total 20 | 20 Tactical Retreats . | . Traps | -11 ------- Run | Scr Traps Triggered . | . Indirectly . | . Trap Hack Attempts . | . Triggered . | . Disarmed . | . Reprogrammed . | . Reused . | . Traps Extracted . | . Installed . | . Triggered . | . Machines | -11 ---------- Run | Scr Machines Disabled . | . Max in Single Turn . | . Machines Sabotaged . | . Garrisons Compromised . | . Overloaded Fab Kills . | . Fab Network Shutdowns . | . Hacking | -11 --------- Run | Scr Machines Accessed . | . Terminals . | . Fabricators . | . Repair Stations . | . Recycling Units . | . Scanalyzers . | . Garrison Access . | . Total Hacks . | . Successful . | . Failed . | . Catastrophic . | . Database Lockouts . | . Manual . | . Terminals . | . Fabricators . | . Repair Stations . | . Recycling Units . | . Scanalyzers . | . Garrison Access . | . Terminal Hacks . | . Fabricator Hacks . | . Repair Station Hacks . | . Recycling Unit Hacks . | . Scanalyzer . | . Garrison Access Hacks . | . Unauthorized Hacks . | . Terminals . | . Fabricators . | . Repair Stations . | . Recycling Units . | . Scanalyzers . | . Garrison Access . | . Data Cores Recovered . | . Used . | . Hacking Detections . | . Full Trace Events . | . Feedback Events . | . Feedback Blocked . | . Robot Schematics Acquired . | . Robots Built . | . Matter . | . Time . | . Total Robot Build Rating . | . Part Schematics Acquired . | . Parts Built . | . Matter . | . Time . | . Total Part Build Rating . | . Parts Repaired . | . Time . | . Parts Recycled . | . Recycled Matter . | . Retrieved Matter . | . Retrieved Components . | . Parts Scanalyzed . | . Part Schematics Acquired . | . Parts Damaged . | . Bothacking | -11 ------------ Run | Scr Used RIF Installer . | . Robots Hacked . | . Non-combat . | . Combat . | . Robot Hacks Applied . | . Relay Couplers Released . | . Robots Rewired . | . Allies Hacked . | . Hacks Repelled . | . Allies | -11 -------- Run | Scr Total Allies . | . Largest Group . | . Highest-Rated Group . | . Highest-Rated Ally . | . Total Orders . | . Ally Attacks . | . Total Damage . | . Kills . | . Allies Corrupted . | . Allies Melted . | . Intel | -11 ------- Run | Scr Robot Analysis Total . | . Derelict Logs Recovered . | . Drone Launches . | . Drone Recoveries . | . Exploration | -11 ------------- Run | Scr Turns Passed 5907 | 5907 Spaces Moved 316 | 316 Core 2 | 2 Treads 314 | 314 Legs . | . Wheels . | . Hover . | . Flight . | . Fastest Speed 50 | 50 Average Speed 159 | 159 Slowest Speed 160 | 160 Overloaded Moves . | . Propulsion Burnouts . | . Robots Hopped . | . Cave-ins Triggered . | . Exploration Rate (%) 36 | 36 Regions Visited . Branch Regions . Pre-discovered Areas . | . Known Exits Taken . | . Unknown Exits Taken . | . Scrap Searched . | . Spaces Dug . | . Terrain Destroyed . | . Melee . | . Projectile . | . AOE . | . Terrain Rammed . | . Walls Destroyed . | . Machines Disabled . | . Actions | -11 --------- Run | Scr Total 5685 | 5685 Wait 5341 | 5341 Move 316 | 316 Hop . | . Pick Up 2 | 2 Fast Attach 8 | 8 Attach . | . Detach . | . Swap 1 | 1 Drop 1 | 1 Fire 16 | 16 Melee . | . Ram . | . Kick . | . Crush . | . Escape Stasis . | . Rewire . | . Trap . | . Miscellaneous . | . Route ------- -11/Scrapyard (discovered 1 exit: [*Mat]) History --------- Turn | Location | Event 7 | -11/Scrapyard | Upgraded with Propulsion slot (x1) 7 | -11/Scrapyard | Upgraded with Utility slot (x1) 7 | -11/Scrapyard | Upgraded with Weapon slot (x1) 9 | -11/Scrapyard | Discovered new exit (range 16) 5884 | -11/Scrapyard | Assembled infested the area 5903 | -11/Scrapyard | Core integrity fell below 50% 5907 | -11/Scrapyard | Core integrity fell below 20% 5908 | -11/Scrapyard | Destroyed by as-03983 with Assembled Maul Last Messages --------------- 00782_ T-07 Excavator is excavating. 00783_ K-01 Serf collects debris. 00787_ T-07 Excavator is excavating. 00789_ K-01 Serf collects debris. 00791_ T-07 Excavator is excavating. 00792_ K-01 Serf collects debris. 00810_ T-07 Excavator is excavating. 00817_ K-01 Serf collects debris. 00824_ T-07 Excavator is excavating. 00826_ K-01 Serf collects debris. 05717_ Dropped Lgt. Assault Rifle. 05717_ Acquired Mining Laser. 05722_ Acquired 10 matter. 05884_ ALERT: Infestation in the scrapyard, dispatching Demolisher response squad. 05892_ as-36672 sneak attacks. 05895_ K-01 Serf destroyed. 05904_ as-36672 destroyed. 05904_ Switching to secondary target: as-33960. 05904_ as-33960 destroyed. Map ----- +----------------------------------------------------+ | | | | | | | | | | | | | | | | | ?????????????????????#?####?##?################# | | ???????????????????????#?###??################## | | ???????????????????#?#??######################## | | ?????????????????##?###??####################### | | ???????????????##?#?############################ | | ????????????????#?################## ?######## | | ?????????????????##?######## "## ## | | ???????????????#?#####?##?# " # # | | ????????????????#?######### " # | | ???????????#?????####?##### " # ######## | | ?????????????#?########??### " ###### | | ?????????#?#???############# " ###### | | ?????????#?#????############ ######## | | ??????????#????############### ######### | | ????????????#??############### ######### | | ????????##?#??#?############## ##### # | | ????????#???#?######?## aaaa #a # # | | ?????????????##########@aaaaaa # | | ???????????#??#########aa a a# ###### ### ## ## | | ??????????#?#??######## a a a% | | ????????##??#???##############! | | ?????????#?????###################### | | ?????????#??#?##?#########?########## | | ?????????????#?###################### | | ?????????????#??#######?############# | | ????????????##??##################### | | ?????????????#??####?#######?######## | | ?????????????????##?##############?## | | ??????????????????#################### | | ?????????????????#?################### | | ??????????????###???################?# | | ????????????????????################?# | | ????????????????????????#####?######## | | ?????????????????????????############# | | ????????????????????????????#?######## | | ??????????????????????????#??###?##?## | | ????????????????????????????#??#?##?## | | ?????????????????????????????#???##?## | | ???????????????????????????????##???## | | ?????????????????????????????###??#### | | ???????????????????????????????#??#### | | ??????????????????????????????##?###?# | +----------------------------------------------------+ Best States ------------- Heat Dissipation 31 Energy Generation 10 Energy Capacity 250 Matter Stores 350 Matter Capacity 350 Sight Range 17 Terrain Scan Range 16 Terrain Scan Density 110 Evasion (%) 40 Recoil Reduction 2 Offensive Hacking 5 Defensive Hacking 5 Item Schematics ----------------- None Robot Schematics ------------------ None Fabricated ------------ Nothing Alien Tech Used ----------------- None Achievements -------------- None Challenges ------------ None RPGLIKE | -11 --------- Run | Scr Levels Raised . | . XP Earned 3000 | 3000 XP Spent 2950 | 2950 Upgrades 11 | 11 Propulsion Slot 1 | 1 Utility Slot 1 | 1 Weapon Slot 1 | 1 Heat Dissipation 1 | 1 Mass Support 1 | 1 Inventory Capacity 2 | 2 Sight Range 1 | 1 Terrain Scan Density 1 | 1 Hack Attack % 1 | 1 Hack Defense % 1 | 1 Protomatter Created 13 | 13 Protomatter Decayed . | . Game ------ Seed TeslaMiningStreamer Manual? 0 Play Time 00:11:56 Cumulative 261.2 hours Start 2020.09.20 @ 23:49:14 End 2020.09.20 @ 23:55:20 Sessions 0 Manual Loads 0 Difficulty Rogue Special Mode Winter2019/RPGLIKE Game No. 108 Rogue 108 Adventurer 0 Explorer 0 Win Type - Total 4 Types 3/0/0/1/0/0/0/0/0 Lore% 83 Gallery% 86 Achievement% 69 Wizard Run 0 Options --------- ASCII 0 Keyboard 0 Movement Numpad Keybinds 0 Fullscreen 1 Font 18/SmallcapsGlow Map View 76x50 Tactical HUD 1 Map Filters NONE Filters NONE Steam 1 RUN: 0cd783b9-5229-4198-b72c-be548bceaa4b